bitfinex/quotes_ETHUSD_20250126
["timestamp","ask_amount","ask_price","bid_price","bid_amount"]
[1737884463750,0.1,3297.3,3297.2,4.36117]
[1737884464155,0.1,3298.1,3298.0,3.03214]
[1737884465533,0.1,3298.1,3298.0,3.58214]
[1737884466051,0.1,3298.5,3298.4,3.03177]
[1737884466723,0.1,3298.5,3298.4,3.58177]
[1737884467211,0.1,3298.7,3298.6,3.03158]
[1737884467557,0.1,3298.8,3298.2,0.8036]
[1737884467721,0.1,3298.8,3298.7,3.03149]
[1737884468220,0.24786951,3298.8,3298.7,3.03149]
[1737884468421,0.1,3298.8,3298.7,3.03149]
[1737884468939,0.24787355,3298.8,3298.7,3.03149]
[1737884469273,0.1,3298.8,3298.7,3.03149]
[1737884469411,0.1,3299.0,3298.9,3.03131]
[1737884469932,0.1,3299.2,3299.1,3.03112]
[1737884470456,0.03788496,3300.0,3298.8,3.03132]
[1737884470457,0.1,3298.9,3298.8,3.03132]
[1737884470821,0.1,3299.2,3299.1,3.03112]
[1737884471758,0.1,3299.2,3298.1,3.03198]
[1737884471759,0.1,3299.2,3298.1,6.06408]
[1737884471960,0.1,3299.2,3298.4,3.55]
[1737884472260,0.1,3299.2,3299.1,3.03112]
[1737884472656,0.1,3299.2,3298.9,3.03122]
[1737884472657,0.1,3299.2,3299.0,3.03116]
[1737884473159,0.1,3299.2,3299.1,3.03112]
[1737884473328,0.1,3299.2,3298.2,3.686768]
[1737884473529,0.1,3298.5,3296.6,0.1]
[1737884473733,0.1,3298.5,3298.3,3.03184]
[1737884474046,0.1,3298.5,3298.1,3.03204]
[1737884474219,0.1,3298.5,3298.3,3.03178]
[1737884475353,0.14799329,3298.4,3298.3,3.03178]
[1737884476212,0.1,3298.5,3298.3,3.03178]
[1737884476413,0.14799716,3298.4,3298.3,3.03178]
[1737884476615,0.1,3298.5,3298.3,3.03178]
[1737884476851,0.14799716,3298.4,3298.3,3.03178]
[1737884477924,0.1,3298.5,3298.4,3.03177]
[1737884478228,0.24800943,3298.5,3298.4,3.03177]
[1737884478639,0.1,3298.5,3298.4,3.03177]
[1737884479227,0.03789493,3299.3,3299.2,3.03103]
[1737884479430,107.0,3300.0,3298.5,3.03168]
[1737884479632,0.13319228,3299.3,3298.5,6.06336]
[1737884479931,0.7146,3299.7,3298.9,3.03126]
[1737884480128,0.12732391,3299.2,3299.0,3.0312]
[1737884480462,0.12731164,3299.1,3299.0,3.0312]
[1737884480759,0.75248759,3299.7,3299.1,3.03112]
[1737884481264,0.75248759,3299.7,3299.2,3.03102]
[1737884481435,0.7146,3299.7,3299.2,3.03102]
[1737884481637,110.03033,3300.0,3298.6,3.03158]
[1737884481638,107.0,3300.0,3299.3,3.03085]
[1737884481966,3.03051,3299.8,3299.1,3.03111]
[1737884482168,0.03788581,3299.7,3299.1,3.03111]
[1737884482334,3.06847581,3299.7,3299.1,3.03111]
[1737884482534,0.7146,3299.6,3299.1,3.03111]
[1737884482766,0.03788685,3299.5,3299.1,3.03111]
[1737884483623,0.7146,3299.6,3299.2,3.03103]
[1737884484158,0.7146,3299.6,3299.3,3.03093]
[1737884484376,107.7146,3300.0,3299.2,3.03097]
[1737884484564,0.0378868,3299.8,3299.3,3.03088]
[1737884485546,3.03055,3299.8,3298.9,3.03124]
[1737884485743,3.03067,3299.6,3298.9,3.03124]
[1737884486051,0.03788982,3299.5,3299.0,3.03121]
[1737884486785,0.03788982,3299.7,3299.1,3.03106]
[1737884487374,3.01836982,3299.8,3299.2,3.03103]
[1737884487585,0.03755592,3299.7,3299.2,3.03103]
[1737884488677,0.03755592,3299.8,3299.2,3.03103]
[1737884490325,0.12327275,3299.7,3299.2,3.03103]
[1737884491707,0.16082867,3299.7,3299.2,3.03103]
[1737884492418,0.12327275,3299.7,3299.2,3.03103]
[1737884494690,0.12327275,3299.7,3299.3,3.03094]
[1737884494888,0.03755592,3299.8,3299.3,3.03094]
[1737884495121,0.12336531,3299.6,3299.3,3.03094]
[1737884495319,0.12336531,3299.6,3299.1,3.03111]
[1737884495618,0.12336531,3299.6,3299.4,3.03084]
[1737884495820,110.7449,3300.0,3299.4,3.03084]
[1737884495972,110.7449,3300.0,3299.0,3.03121]
[1737884495973,0.16106916,3299.9,3299.0,3.03121]
[1737884496173,0.7146,3299.5,3298.2,3.03189]
[1737884496411,0.7146,3298.8,3298.2,3.03189]
[1737884496613,0.75215592,3298.8,3298.2,3.03189]
[1737884496786,0.12336413,3298.7,3298.2,3.03189]
[1737884497236,0.12336413,3298.7,3298.3,3.03178]
[1737884497425,0.7146,3299.2,3298.6,3.03158]
[1737884497647,0.7146,3299.2,3298.8,3.03134]
[1737884497952,0.09173004,3299.9,3298.8,3.03134]
[1737884497953,0.12298143,3299.1,3298.8,3.03134]
[1737884498457,0.12296607,3299.0,3298.8,3.03134]
[1737884498664,0.03755592,3299.4,3298.8,3.03134]
[1737884498816,3.74538,3299.5,3298.9,3.0313]
[1737884499541,0.7146,3299.5,3299.0,0.55]
[1737884499743,0.75215592,3299.5,3299.0,3.58115]
[1737884500369,0.75215592,3299.5,3299.0,0.55]
[1737884500690,0.75215592,3299.5,3298.8,0.55]
[1737884500978,0.7146,3299.5,3299.0,3.03121]
[1737884501124,0.03755592,3299.4,3298.1,0.7636]
[1737884501477,0.03755592,3299.4,3298.5,3.03161]
[1737884501679,0.03755592,3299.4,3297.9,3.03031112]
[1737884501680,0.7146,3299.3,3297.6,3.82917]
[1737884501833,3.74635,3298.5,3297.8,3.03231]
[1737884502028,0.03755592,3298.4,3297.8,3.03231]
[1737884502383,3.74635,3298.5,3297.8,3.03231]
[1737884503970,3.74635,3298.5,3297.7,0.55]
[1737884504276,0.3,3299.8,3298.0,0.55]
[1737884504277,3.03141,3298.8,3298.0,0.55]
[1737884504877,3.03141,3298.8,3298.2,3.03194]
[1737884505081,3.06906592,3298.7,3298.0,3.58212]
[1737884505278,0.16049257,3298.7,3297.8,3.03226]
[1737884505634,3.03161,3298.6,3297.9,0.55]
[1737884505835,0.12285685,3298.5,3297.9,0.55]
[1737884506280,3.15454685,3298.5,3297.9,0.55]
[1737884507175,3.03187,3298.3,3297.6,3.03248]
[1737884507538,0.12291878,3298.2,3297.6,3.03248]
[1737884508381,0.12291878,3298.2,3297.7,3.58233]
[1737884508677,0.55395112,3298.4,3297.9,3.03216]
[1737884508886,0.12290651,3298.1,3297.9,3.03216]
[1737884509069,0.55395112,3298.4,3297.9,3.03216]
[1737884509400,0.12289423,3298.0,3297.9,3.58216]
[1737884509557,0.55395112,3298.4,3297.9,3.58216]
[1737884509885,3.03145,3298.8,3298.0,0.55]
[1737884510093,0.12293105,3298.3,3298.1,3.03203]
[1737884510246,3.06882592,3299.0,3298.3,0.55]
[1737884510439,3.03131,3298.9,3298.3,3.58177]
[1737884510642,0.03755592,3299.0,3298.2,0.55]
[1737884510841,3.06807483,3299.1,3298.9,3.0313]
[1737884511042,3.06807483,3299.1,3298.7,3.03142]
[1737884511266,3.06807483,3299.1,3298.7,6.06284]
[1737884511466,3.06807483,3299.1,3298.7,3.03142]
[1737884512260,3.06807483,3299.1,3298.3,0.55]
[1737884512459,3.06807483,3299.1,3298.8,3.03136]
[1737884513787,3.06807483,3299.1,3298.7,0.55]
[1737884514184,3.10563075,3299.1,3298.4,3.03175]
[1737884514392,3.03123,3299.0,3298.4,3.03175]
[1737884514559,3.03157,3298.7,3297.9,3.03214]
[1737884514888,0.03755592,3298.6,3297.8,0.7994]
[1737884515100,0.554,3298.5,3297.7,3.03238]
[1737884515296,3.58569,3298.5,3297.8,3.0323]
[1737884515853,0.554,3298.5,3298.0,3.03213]
[1737884516573,3.58568,3298.5,3297.9,0.55]
[1737884517592,3.58568,3298.5,3297.9,3.58219]
[1737884517791,0.554,3298.5,3297.9,3.58219]
[1737884519903,0.554,3298.8,3298.2,0.55]
[1737884520195,0.554,3298.8,3298.3,3.03183]
[1737884520349,0.11866941,3298.7,3298.3,3.03183]
[1737884520547,0.554,3298.8,3298.3,3.03183]
[1737884520789,4.8720849,3299.0,3298.5,3.58168]
[1737884520790,0.11865714,3298.6,3298.5,3.58168]
[1737884520989,0.11866941,3298.7,3298.6,3.03158]
[1737884521190,1.8408449,3299.0,3298.7,3.03148]
[1737884521347,1.8408449,3299.0,3297.8,0.818]
[1737884521348,1.87840082,3299.0,3297.8,0.818]
[1737884521552,3.03145,3298.8,3297.8,3.85032]
[1737884521852,4.8720949,3299.0,3298.2,3.58195]
[1737884522053,4.8720949,3299.0,3298.3,3.03183]
[1737884522253,3.03137,3298.9,3298.2,0.55]
[1737884522551,1.8408449,3299.0,3298.4,3.0317]
[1737884522790,1.8408449,3299.0,3298.4,3.03174]
[1737884522991,1.8408449,3299.0,3298.6,0.55]
[1737884523201,1.8408449,3299.0,3298.6,3.58151]
[1737884523436,1.8408449,3299.0,3298.7,3.03148]
[1737884523929,0.554,3299.2,3298.7,3.03148]
[1737884524429,3.06851592,3299.3,3298.7,3.03148]
[1737884524726,0.03755592,3299.2,3298.9,3.03124]
[1737884524930,1.8408449,3299.4,3298.8,0.0303089]
[1737884525229,1.8408449,3299.4,3299.1,3.03112]
[1737884525381,1.8408449,3299.4,3298.9,3.03131]
[1737884525989,1.8408449,3299.4,3299.0,3.03118]
[1737884526290,1.8408449,3299.4,3299.2,3.03102]
[1737884526791,2.3948449,3299.6,3299.2,3.03102]
[1737884527932,2.3948449,3299.6,3299.1,0.55]
[1737884529032,2.3948449,3299.6,3299.2,0.55]
[1737884529821,1.8408449,3299.6,3299.4,0.55]
[1737884530335,0.2496,3299.8,3299.4,0.55]
[1737884530498,0.2496,3299.8,3299.6,0.55]
[1737884531298,0.2496,3299.8,3299.2,0.358112]
[1737884531508,0.2496,3299.8,3299.3,3.03093]
[1737884531734,3.28012,3299.8,3299.3,0.55]
[1737884532438,0.2496,3299.8,3299.6,0.55]
[1737884532609,0.2496,3299.8,3299.4,4.2427442]
[1737884532793,0.2496,3299.8,3299.5,3.03075]
[1737884532994,0.2496,3299.8,3299.6,0.55]
[1737884534901,0.2496,3299.8,3299.6,3.03065]
[1737884535096,0.2496,3299.8,3299.7,3.58057]
[1737884537233,0.2496,3299.8,3299.7,3.61087196]
[1737884538144,0.2496,3299.8,3299.7,3.58057]
[1737884539108,0.2496,3299.8,3299.7,3.61087006]
[1737884539335,0.2496,3299.8,3299.7,3.58057]
[1737884539556,0.2496,3299.8,3299.7,5.1768585]
[1737884539744,0.2496,3299.8,3299.7,8.20715702]
[1737884540045,0.2496,3299.8,3299.7,8.1768585]
[1737884540840,1e-05,3299.8,3299.7,8.1768585]
[1737884541347,107.0,3300.0,3299.9,3.58039]
[1737884541549,107.0,3300.0,3299.9,5.43905485]
[1737884543163,107.0,3300.0,3299.9,5.46935338]
[1737884543321,107.0,3300.0,3299.9,8.43905485]
[1737884545329,107.0,3300.0,3299.9,4.88905485]
[1737884545724,107.0,3300.0,3299.9,5.43905485]
[1737884546361,107.554,3300.0,3299.7,3.03057]
[1737884546518,107.0,3300.0,3299.5,3.03074]
[1737884546724,107.0,3300.0,3299.6,3.03067]
[1737884546927,107.0,3300.0,3299.8,3.03047]
[1737884547120,107.0,3300.0,3299.6,3.03067]
[1737884547622,107.0,3300.0,3299.6,0.55]
[1737884547844,107.0,3300.0,3299.6,3.58064]
[1737884548046,107.0,3300.0,3299.6,1.2141693]
[1737884548264,107.0,3300.0,3299.8,0.55]
[1737884549274,107.0,3300.0,3299.9,3.58039]
[1737884550272,107.11600087,3300.0,3299.9,3.58039]
[1737884551976,107.11600087,3300.0,3299.9,4.37049]
[1737884552134,107.11600087,3300.0,3299.9,5.110589]
[1737884552335,107.11600087,3300.0,3299.9,4.320489]
[1737884554142,107.11600087,3300.0,3299.9,7.320489]
[1737884557286,57.11600087,3300.0,3299.9,7.320489]
[1737884557656,57.11600087,3300.0,3299.9,6.770489]
[1737884557839,57.11600087,3300.0,3299.9,7.320489]
[1737884563301,57.11600087,3300.0,3299.9,3.58039]
[1737884565010,57.11600087,3300.0,3299.7,3.0305]
[1737884566284,3.03059,3299.7,3299.0,3.03113]
[1737884566481,0.1497277,3299.6,3299.0,3.03113]
[1737884567262,0.11217178,3299.6,3299.2,0.55]
[1737884567469,3.58447,3299.9,3299.2,0.55]
[1737884567667,0.1120999,3299.8,3299.2,3.939105]
[1737884569200,0.1120999,3299.8,3299.5,3.03069]
[1737884569405,0.1120999,3299.8,3299.7,0.55]
[1737884570331,0.1120999,3299.8,3299.7,3.58057]
[1737884571309,57.0,3300.0,3299.9,0.55]
[1737884571517,57.11196268,3300.0,3299.9,0.55]
[1737884571707,57.11196268,3300.0,3299.9,3.58039]
[1737884574935,57.11196268,3300.0,3299.9,3.938429]
[1737884575995,57.11196268,3300.0,3299.9,6.938429]
[1737884576696,57.11196268,3300.0,3299.9,7.750329]
[1737884580835,57.11196268,3300.0,3299.9,6.938429]
[1737884584677,57.11196268,3300.0,3299.7,3.03052]
[1737884585870,57.11196268,3300.0,3299.8,0.55]
[1737884586681,60.14228268,3300.0,3299.3,3.03088]
[1737884586982,0.03755592,3299.9,3299.3,3.03088]
[1737884587177,0.03755592,3299.9,3299.4,0.55]
[1737884587483,0.11225847,3299.8,3299.4,0.55]
[1737884588481,0.11225847,3299.8,3299.5,0.55]
[1737884588768,60.03032,3300.0,3299.5,0.55]
[1737884588975,0.11224621,3299.7,3299.5,0.55]
[1737884589281,60.03032,3300.0,3299.5,0.55]
[1737884589486,0.11223394,3299.6,3299.5,0.55]
[1737884589670,60.03032,3300.0,3299.5,0.55]
[1737884589874,0.11223394,3299.6,3299.5,0.55]
[1737884590069,60.03032,3300.0,3299.5,0.55]
[1737884590682,0.11227073,3299.9,3299.5,0.55]
[1737884591072,0.14982665,3299.9,3298.8,0.8196]
[1737884591274,3.03058,3299.7,3299.0,3.03122]
[1737884591587,0.11193854,3299.6,3299.3,0.55]
[1737884591936,3.03039,3299.9,3299.3,0.55]
[1737884592166,0.11192628,3299.5,3299.3,0.55]
[1737884592348,57.0,3300.0,3299.6,3.03065]
[1737884592553,57.0,3300.0,3299.7,0.55]
[1737884592975,57.0,3300.0,3299.4,3.388952]
[1737884593186,57.0,3300.0,3299.6,3.03063]
[1737884593373,57.0,3300.0,3299.7,3.58049]
[1737884593575,57.0,3300.0,3299.9,3.58039]
[1737884595268,57.0,3300.0,3299.6,0.8196]
[1737884595269,57.0,3300.0,3299.2,0.60658956]
[1737884595437,57.11196269,3300.0,3299.6,0.55]
[1737884597756,57.11196269,3300.0,3299.6,3.58066]
[1737884603299,57.11196269,3300.0,3299.8,0.55]
[1737884604581,57.11196269,3300.0,3299.9,3.58039]
[1737884606060,57.11196269,3300.0,3299.9,6.58039]
[1737884608768,57.11196269,3300.0,3299.9,7.33189]
[1737884609872,36.66599924,3300.0,3299.9,8.4039346]
[1737884610409,36.66599924,3300.0,3299.9,8.6279346]
[1737884611181,36.66599924,3300.0,3299.9,8.4039346]
[1737884613209,35.99171054,3300.0,3299.9,8.4039346]
[1737884618301,35.99171054,3300.0,3299.9,8.5039346]
[1737884618302,13.0894532,3300.0,3299.9,8.5039346]
[1737884618490,12.46172868,3300.0,3299.9,8.5039346]
[1737884618703,7.91627868,3300.0,3299.9,8.5039346]
[1737884618873,4.88597868,3300.0,3299.9,8.5039346]
[1737884619073,4.12297868,3300.0,3299.9,8.5039346]
[1737884619324,4.01101599,3300.0,3299.9,8.5039346]
[1737884619674,2.49586599,3300.0,3299.9,8.4039346]
[1737884620028,5.99e-06,3300.0,3299.9,8.4039346]
[1737884620920,5.99e-06,3300.0,3299.9,8.7259346]
[1737884621227,0.554,3301.7,3300.0,3.55]
[1737884621423,0.554,3301.7,3299.9,5.6955446]
[1737884621424,0.554,3301.7,3301.0,3.0]
[1737884621610,0.15059231,3301.6,3300.8,3.02956]
[1737884621777,0.03755592,3301.6,3300.8,3.02956]
[1737884622121,0.66704734,3301.5,3300.9,3.55]
[1737884622319,1.04038167,3301.5,3300.9,3.55]
[1737884622624,1.04038167,3301.5,3300.9,0.55]
[1737884622806,1.04038167,3301.5,3300.3,3.03001]
[1737884622807,0.59155592,3301.4,3300.3,3.03001]
[1737884623124,3.14210676,3301.3,3300.4,3.02991]
[1737884623327,3.14210676,3301.3,3299.9,0.7515]
[1737884623328,0.554,3300.8,3299.9,3.03036]
[1737884623488,0.03755592,3300.7,3300.0,3.03029]
[1737884623678,0.15045008,3300.7,3300.1,3.0]
[1737884623876,0.15045008,3300.7,3300.0,3.03029]
[1737884624314,0.11289416,3300.7,3300.3,0.55]
[1737884624613,0.554,3300.8,3300.0,3.03029]
[1737884624779,0.11274851,3300.6,3300.1,0.55]
[1737884625011,0.554,3300.8,3300.1,0.55]
[1737884625211,0.11277107,3300.5,3300.1,0.55]
[1737884625540,3.02883,3301.7,3299.9,3.0]
[1737884625541,0.11267387,3300.4,3299.9,3.0]
[1737884625709,0.03755592,3300.5,3299.9,3.0]
[1737884625905,0.11259173,3300.4,3299.9,3.0]
[1737884626109,0.11259173,3300.4,3299.7,6.06086161]
[1737884626110,0.554,3300.3,3299.7,6.06086161]
[1737884626353,0.1125672,3300.2,3299.9,3.0]
[1737884626653,0.554,3300.3,3299.9,3.0]
[1737884627156,0.11267236,3300.2,3299.9,3.0]
[1737884627505,0.554,3300.3,3299.9,3.0]
[1737884627806,0.11261333,3300.2,3300.0,3.5803]
[1737884628008,0.554,3300.3,3300.0,3.5803]
[1737884628422,0.11260711,3300.2,3300.0,3.5803]
[1737884628641,0.554,3300.3,3300.0,3.5803]
[1737884629151,0.11252128,3300.2,3300.0,3.5803]
[1737884629514,0.554,3300.3,3300.0,3.5803]
[1737884629850,0.11252128,3300.2,3300.0,3.5803]
[1737884630226,0.554,3300.3,3300.0,3.5803]
[1737884630614,0.11252128,3300.2,3300.0,3.5803]
[1737884630815,0.554,3300.3,3300.0,0.55]
[1737884631017,0.11250902,3300.1,3300.0,0.55]
[1737884631249,0.554,3300.3,3300.0,0.55]
[1737884631754,0.11252128,3300.2,3300.0,0.55]
[1737884631957,0.554,3300.3,3300.0,0.55]
[1737884632155,0.11252128,3300.2,3300.0,0.55]
[1737884632355,0.554,3300.3,3300.1,0.55]
[1737884632852,0.11252128,3300.2,3300.1,0.55]
[1737884633226,0.554,3300.3,3300.1,0.55]
[1737884633628,0.11252128,3300.2,3300.1,0.55]
[1737884634054,0.554,3300.3,3300.1,0.55]
[1737884634349,0.11252128,3300.2,3300.1,0.55]
[1737884634545,0.554,3300.3,3300.1,0.55]
[1737884634856,0.11255224,3300.2,3300.1,0.55]
[1737884635259,0.554,3300.3,3300.1,3.58021]
[1737884635631,0.11255224,3300.2,3300.1,3.58021]
[1737884636192,0.554,3300.3,3300.1,3.58021]
[1737884636558,0.11157891,3300.2,3300.1,3.58021]
[1737884636755,0.554,3300.3,3300.1,3.58021]
[1737884636933,0.11157891,3300.2,3299.9,6.58033]
[1737884637116,0.554,3300.3,3299.9,6.58033]
[1737884637317,0.554,3300.3,3299.9,3.58033]
[1737884637517,0.11157891,3300.2,3299.9,3.58033]
[1737884637853,0.554,3300.3,3299.9,3.58033]
[1737884638047,0.11156664,3300.1,3299.9,3.58033]
[1737884638252,0.554,3300.3,3299.9,3.58033]
[1737884638717,0.11157891,3300.2,3299.9,3.58033]
[1737884638917,0.554,3300.3,3299.9,3.58033]
[1737884639266,0.11157891,3300.2,3299.9,0.55]
[1737884639622,3.02966,3300.7,3299.9,0.55]
[1737884639822,0.11150585,3300.1,3299.9,0.55]
[1737884640017,0.554,3300.8,3300.0,3.61059958]
[1737884640219,0.554,3300.8,3300.1,0.55]
[1737884640552,0.11152346,3300.7,3300.1,0.55]
[1737884640752,0.11152346,3300.7,3300.2,0.55]
[1737884641257,0.11152346,3300.7,3300.3,3.02999]
[1737884641551,0.11152053,3300.6,3300.3,3.02999]
[1737884641857,0.554,3300.8,3300.4,0.55]
[1737884642024,0.554,3300.8,3300.5,3.61011659]
[1737884642359,0.554,3301.3,3300.5,3.61011659]
[1737884643146,0.554,3301.3,3300.8,0.55]
[1737884643323,0.554,3301.3,3301.0,0.55]
[1737884643627,3.02867,3301.8,3301.0,0.55]
[1737884643845,0.554,3301.7,3301.0,0.55]
[1737884644475,3.58274,3301.7,3301.0,0.55]
[1737884645190,0.554,3301.7,3301.1,3.57927]
[1737884645596,3.02859,3301.9,3301.1,3.57927]
[1737884645597,3.02828,3302.2,3301.2,0.58028984]
[1737884645878,3.02847,3302.0,3301.2,3.02913]
[1737884646173,3.02847,3302.0,3301.3,0.55]
[1737884646557,0.03755592,3302.2,3301.3,0.55]
[1737884646860,3.02838,3302.1,3301.3,0.55]
[1737884647066,0.302838,3302.0,3301.3,0.55]
[1737884647576,0.302838,3302.0,3301.0,3.02936]
[1737884647577,3.02856,3301.9,3301.0,3.02936]
[1737884647869,0.554,3301.8,3301.0,3.02936]
[1737884648047,0.554,3301.8,3301.1,0.55]
[1737884648840,3.02874,3301.7,3300.9,0.03028758]
[1737884649040,0.554,3301.8,3300.9,3.60972758]
[1737884650949,3.58267,3301.8,3300.9,0.58028758]
[1737884651150,3.58267,3301.8,3300.9,3.60973758]
[1737884651486,0.554,3301.8,3301.1,3.02927]
[1737884651637,0.554,3301.8,3301.2,3.36238438]
[1737884652075,0.554,3301.8,3301.3,0.55]
[1737884652459,0.554,3301.8,3301.2,0.33321438]
[1737884652665,0.554,3301.8,3301.2,0.03028738]
[1737884654583,3.02847,3302.0,3301.2,0.03028738]
[1737884654990,0.554,3302.1,3301.2,0.03028738]
[1737884655236,0.554,3302.1,3301.6,0.55]
[1737884655237,0.10470469,3301.9,3301.6,0.55]
[1737884655531,0.554,3302.4,3301.6,0.58028299]
[1737884655696,0.10453703,3301.8,3301.2,0.8276]
[1737884655889,0.03755592,3302.1,3301.2,0.8276]
[1737884656084,0.10492142,3301.7,3301.3,0.55]
[1737884656320,0.03755592,3302.1,3301.3,0.55]
[1737884656632,0.10494801,3301.6,3301.3,0.03028612]
[1737884656777,0.10494801,3301.6,3301.1,0.55]
[1737884656778,3.02856,3301.9,3301.1,0.58028757]
[1737884656981,3.02856,3301.9,3300.9,0.8276]
[1737884657227,3.02877,3301.7,3300.9,0.8276]
[1737884657580,0.10489317,3301.6,3300.9,0.8276]
[1737884657782,0.10489317,3301.6,3301.0,0.55]
[1737884659145,0.10489317,3301.6,3301.0,0.58028913]
[1737884659432,3.58248,3302.0,3301.0,0.58028913]
[1737884659604,0.10486127,3301.5,3301.0,0.58028913]
[1737884659806,3.58248,3302.0,3301.0,0.58028913]
[1737884660052,0.10484902,3301.4,3301.0,3.60966913]
[1737884660235,3.58248,3302.0,3301.1,0.44372691]
[1737884660414,0.10482463,3301.3,3301.2,0.58028776]
[1737884660620,0.554,3302.1,3301.2,3.60948776]
[1737884660814,0.10478206,3301.3,3301.2,3.60948776]
[1737884661014,0.554,3302.1,3301.2,3.60948776]
[1737884661192,0.10478206,3301.3,3301.2,4.31774723]
[1737884661400,0.554,3302.1,3301.2,4.31774723]
[1737884661602,0.10478206,3301.3,3301.2,4.31774723]
[1737884661836,0.554,3302.1,3301.2,4.31774723]
[1737884662136,0.554,3302.1,3301.1,0.44372691]
[1737884662137,3.58244,3302.1,3301.1,0.44372691]
[1737884662300,3.58244,3302.1,3301.2,0.55]
[1737884662506,3.13347179,3302.0,3301.2,0.55]
[1737884663299,0.10498179,3302.0,3301.3,0.03028558]
[1737884664450,0.10498179,3302.0,3301.3,0.58028558]
[1737884664808,0.10498179,3302.0,3301.3,0.03028558]
[1737884666513,0.10498179,3302.0,3301.3,0.43561483]
[1737884668947,0.10498179,3302.0,3301.1,0.44372691]
[1737884668948,3.0288,3301.7,3301.1,0.44372691]
[1737884669112,3.0288,3301.7,3301.2,0.55]
[1737884669423,0.10497422,3301.6,3301.0,0.03028923]
[1737884670113,0.10497422,3301.6,3301.0,0.58028923]
[1737884670448,3.02863,3301.9,3301.0,0.58028923]
[1737884670609,0.10496584,3301.5,3301.0,1.32403315]
[1737884670934,3.02863,3301.9,3301.0,1.32403315]
[1737884671137,0.10495359,3301.4,3301.0,1.32403315]
[1737884671338,3.02863,3301.9,3301.0,1.32403315]
[1737884671546,0.10494134,3301.3,3301.0,1.32403315]
[1737884671707,3.02863,3301.9,3301.2,0.55]
[1737884671910,3.02863,3301.9,3301.2,0.58028925]
[1737884672212,3.5824,3302.1,3301.1,3.57926]
[1737884672404,3.5824,3302.1,3301.3,0.55]
[1737884673323,0.554,3302.1,3301.4,0.55]
[1737884673832,0.554,3302.1,3301.4,0.5802856]
[1737884674922,3.02847,3302.0,3301.2,0.55]
[1737884675847,3.02847,3302.0,3301.3,0.03028563]
[1737884676465,3.58242,3302.1,3301.3,0.03028563]
[1737884676624,3.58242,3302.1,3301.4,0.55]
[1737884677027,0.554,3302.1,3301.5,0.03028565]
[1737884678425,0.554,3302.1,3301.6,0.55]
[1737884679234,3.02846,3302.0,3301.5,0.8049]
[1737884679440,3.02846,3302.0,3301.3,0.36095556]
[1737884679933,3.02846,3302.0,3301.4,0.55]
[1737884680250,3.58237,3302.1,3301.4,0.55]
[1737884682183,3.58237,3302.1,3301.4,0.58028489]
[1737884682378,3.58237,3302.1,3301.4,0.55]
[1737884682678,3.58237,3302.1,3301.4,1.02450356]
[1737884683077,3.02847,3302.0,3301.4,1.02450356]
[1737884683287,3.02847,3302.0,3301.3,0.55]
[1737884683939,3.02882,3301.7,3301.3,0.55]
[1737884684333,3.02882,3301.7,3301.2,0.8049]
[1737884684334,3.5821,3302.4,3301.5,0.55]
[1737884684576,3.5821,3302.4,3301.6,0.03028298]
[1737884685240,0.09803638,3302.3,3301.6,0.58028298]
[1737884685580,0.09803638,3302.3,3302.0,0.55]
[1737884685955,3.02801,3302.5,3302.0,0.55]
[1737884686391,0.09800485,3302.4,3302.0,0.55]
[1737884688558,3.12616485,3302.4,3302.0,0.55]
[1737884689702,0.09800485,3302.4,3301.2,0.8236]
[1737884689902,0.03755592,3302.7,3301.3,0.0302839]
[1737884690057,0.52037922,3302.6,3301.3,0.5802839]
[1737884691360,0.09813841,3302.6,3301.3,0.5802839]
[1737884692898,0.03755592,3302.5,3301.3,0.5802839]
[1737884693257,0.09811031,3302.4,3301.3,0.5802839]
[1737884694188,0.03755592,3302.7,3301.3,0.5802839]
[1737884694402,0.09811352,3302.3,3301.3,0.5802839]
[1737884694561,0.03755592,3302.7,3301.3,0.5802839]
[1737884695064,0.59994367,3302.2,3301.3,0.5802839]
[1737884695265,0.0980929,3302.1,3301.3,0.5802839]
[1737884699412,0.6520929,3302.1,3301.3,0.0302839]
[1737884699596,0.554,3301.9,3300.5,0.8236]
[1737884699771,0.03755592,3301.8,3300.5,0.8236]
[1737884700151,0.13555179,3301.8,3300.5,0.8236]
[1737884701977,0.59488428,3301.4,3300.6,0.55]
[1737884702181,0.59155592,3301.3,3300.6,0.55]
[1737884702415,0.68933263,3301.3,3300.5,0.8236]
[1737884702707,0.68933263,3301.3,3300.6,0.55]
[1737884703012,0.65177671,3301.3,3300.5,0.8236]
[1737884703304,0.65177671,3301.3,3300.6,0.55]
[1737884708524,0.09777671,3301.3,3300.6,0.55]
[1737884713253,0.03755592,3301.2,3300.5,0.8236]
[1737884713626,0.554,3301.0,3300.1,0.7808]
[1737884713840,0.03755592,3300.9,3300.1,0.7808]
[1737884714154,0.13495938,3300.9,3300.1,0.7808]
[1737884715248,0.74717088,3300.9,3300.1,0.7808]
[1737884715451,0.70961496,3300.9,3298.3,0.8087]
[1737884715655,0.74717088,3300.9,3298.5,0.8087]
[1737884715952,0.74717088,3300.9,3298.7,0.8087]
[1737884716111,0.74717088,3300.9,3298.8,0.03030399]
[1737884716425,0.13495938,3300.9,3299.3,0.8087]
[1737884716625,0.13495938,3300.9,3299.6,0.55]
[1737884718531,0.61784834,3300.2,3299.6,0.55]
[1737884718730,0.13495938,3300.9,3299.6,0.55]
[1737884718731,0.09413432,3300.1,3299.6,0.55]
[1737884719043,0.03755592,3300.9,3299.6,0.55]
[1737884719226,0.1913398,3300.9,3299.6,0.55]